Workbook

Sheet 09
A1: BHARAT HEAVY ELECTRICAL LIMITED , JHANSI
A2: FACTORY CIVIL DEPARTMENT
A3: Price bid
A4: Name of work -Repair of roads in factory area by laying of Paver blocks.
A5: Tende Enquiry No- FCX/TW/24/09
A6: Part A-DSR-ITEM
A7: Sl. No. | B7: DSR 2016 | C7: Description of Work | D7: % Allocation (Item-wise) | E7: Unit | F7: Quantity | G7: Analysed rate of DSR-2016 | H7: Amount (in Rs.) | I7: Rate per Unit (in Rs.) | J7: Amount (in Rs.)
A8: 1 | B8: 1.1.1/62 | C8: By Mechanical Transport including loading, unloading and stacking: Lime, moorum, building rubbish | D8: =H8*0.5762/871087.27 -> 0.00135316042 | E8: cum | F8: ='[1]Msrment '!H13 -> 26 | G8: 78.68 | H8: =G8*F8 -> 2045.68 | I8: =ROUND(J8/F8,4) -> 0 | J8: =$J$26*D8 -> 0
A9: 2 | B9: 1.1.2/62 | C9: By Mechanical Transport including loading, unloading and stacking Earth upto 1 km . | D9: =H9*0.5762/871087.27 -> 0.003122360385 | E9: cum | F9: ='[1]Msrment '!H18 -> 48 | G9: 98.34 | H9: =F9*G9 -> 4720.32 | I9: =ROUND(J9/F9,4) -> 0 | J9: =$J$26*D9 -> 0
A10: 3 | B10: 2.8.1/63 | C10: Earth work in excavation by mechanical means (Hydraulic excavator) / manual means in foundation trenches or drains, All kinds of soil (not exceeding 1.5 m in width or 10 sqm on plan) including dressing of sides and ramming of bottoms, lift upto 1.5 m, including getting out the excavated soil and disposal of surplus excavated soil as directed, within a lead of 50 m. | D10: 0.005283310638 | E10: cum | F10: ='[1]Msrment '!H18 -> 48 | G10: 166.4 | H10: 7987.2 | I10: 0 | J10: 0
A11: 4 | B11: 4.1.3/85 | C11: Providing and laying in position cement concrete of specified grade excluding the cost of centering and shuttering - All work up to plinth level : "1:2:4 (1 cement : 2 coarse sand (zone-III) : 4 graded stone aggregate 20 mm nominal size). | D11: 0.08989033927 | E11: cum | F11: ='[1]Msrment '!H36 -> 42 | G11: 3235.58 | H11: =G11*F11 -> 135894.36 | I11: 0 | J11: 0
A12: 5 | B12: 5.1.3/96 | C12: Providing and laying in position specified grade of reinforced cement concrete, excluding the cost of centering, shuttering, finishing and reinforcement - All work up to plinth level : 1:2:4 (1 cement : 2 coarse sand : 4 graded stone aggregate 20 mm nominal size) | D12: 0.03032262582 | E12: cum | F12: ='[1]Msrment '!H47 -> 13 | G12: 3526.24 | H12: 45841.12 | I12: 0 | J12: 0
A13: 6 | B13: 5.22.6/99 | C13: Steel reinforcement for R.C.C. work including straightening, cutting, bending, placing in position and binding all complete upto plinth level. Thermo-Mechanically Treated bars of grade Fe-500D or more. | D13: 0.001890090622 | E13: kg | F13: ='[1]Msrment '!H52 -> 260 | G13: 10.99 | H13: 2857.4 | I13: 0 | J13: 0
A14: 7 | B14: 6.1.2/109 | C14: Brick work with common burnt clay F.P.S. (non modular) bricks of class designation 7.5 in foundation and plinth in: Cement mortar 1:6 (1 cement : 6 coarse sand) | D14: 0.01036455475 | E14: cum | F14: ='[1]Msrment '!H59 -> 4 | G14: 3917.23 | H14: 15668.92 | I14: =ROUND(J14/F14,4) -> 0 | J14: 0
A15: 8 | B15: 11.3.1/187 | C15: Cement concrete flooring 1:2:4 (1 cement : 2 coarse sand : 4 graded stone aggregate) finished with a floating coat of neat cement, including cement slurry, but excluding the cost of nosing of steps etc. complete.40 mm thick with 20 mm nominal size stone aggregate | D15: 0.00977602972 | E15: sqm | F15: ='[1]Msrment '!H70 -> 60 | G15: 246.32 | H15: 14779.2 | I15: 0 | J15: 0
A16: 9 | B16: 13.1.2/187 | C16: Plaster -12 mm thick in 1:6 ( 1 cement : 6 fine sand ) | D16: 0.000896294811 | E16: sqm | F16: ='[1]Msrment '!H66 -> 10 | G16: 135.5 | H16: 1355 | I16: 0 | J16: 0
A17: 10 | B17: 15.2.1/253 | C17: Demolishing cement concrete manually/ by mechanical means including disposal of material within 50 metres lead as per direction of Engineer - in - charge. Nominal concrete 1:3:6 or richer mix (i/c equivalent design mix) | D17: 0.003957125054 | E17: Cum | F17: ='[1]Msrment '!H76 -> 6 | G17: 997.05 | H17: 5982.3 | I17: 0 | J17: 0
A18: 11 | B18: DSR Item | C18: Any item in DSR 2016 but not listed above | D18: 0.003307360926 | E18: DSR-2016 | F18: 5000 | G18: 1 | H18: =G18*F18 -> 5000 | I18: 0 | J18: 0
C19: Sub Total "A1" | D19: =SUM(D8:D18) -> 0.1601632524 | H19: =SUM(H8:H18) -> 242131.5 | I19: =SUM(I8:I18) -> 0 | J19: =SUM(J8:J18) -> 0
A22: Part B-Non DSR Items
A23: Sl. No. | C23: Description of Work | D23: % Allocation (Item-wise) | E23: Unit | F23: Quantity | G23: Analysed rate of DSR-2016 | H23: Amount (in Rs.) | I23: Rate per Unit (in Rs.) | J23: Amount (in Rs.)
A24: 11 | B24: Ns-1 | C24: Providing and laying 80 mm thick factory made cement concrete interlocking paver block of M-40 grade made by block making machine with rubber molded unifier finish strong vibratory compaction, of approved size, design & shape, laid in required colour (Red, yellow, Gray) and pattern over and including 50 mm thick compacted bed of stone dust, filling the joints with fine stone dust etc. all complete as per the direction of engineer – incharge. | D24: =H24/871087.27 -> 0.8398367502 | E24: Sqm | F24: ='[1]Msrment '!H82 -> 1620 | G24: 451.5871 | H24: =G24*F24 -> 731571.102 | I24: =ROUND(J24/F24,4) -> 0 | J24: =$J$26*D24 -> 0
A25: Sub Total "B" | D25: =SUM(D24) -> 0.8398367502 | H25: =SUM(H24) -> 731571.102 | J25: =SUM(J24) -> 0
A26: Total "C=A+B" | D26: =D19+D25 -> 1.000000003 | H26: =H25+H21 -> 731571.102 | J26: 0
A27: In words | D27: =rup(J26) -> 0
A29: Note -GST extra as applicable
A30: 1. Bidder has to quote in above unlocked cell (J-26) only. Item rate shall be calculated automatically. Calculated item rates upto four decimal points may be adjusted w.r.t. gross total amount and it shall be the itemwise final rate for execution of contract and all other purposes.
A31: 2. Quoted gross total amount should be considered only if quoted in this excel sheet and print out of this should only be considered for evaluation. If Price is quoted in any other format other than the Excel Sheet enclosed to the NIT , the offer of the bidder will be rejected.
I35: (Signature and Seal of Contractor )
